Cogmind - Beta 15 @@@ ROGUE MODE // 2025.08.30 @ 13:37:15 Player: erkyp3rky Result: Self-destructed Performance ------------- Evolutions (4) 2000 Regions Visited (7) 1400 Robots Destroyed (67) 335 Value Destroyed (2200) 2200 Prototype IDs (19) 380 Alien Tech Used (0) 0 Bonus (800) 800 TOTAL SCORE: 7115 Bonus ------- Registered with UFD 300 Met Optimus in HQ 500 Cogmind --------- Core Integrity 134/850 Matter 197/300 Energy 100/100 System Corruption 8% Temperature Warning (375) Movement Treading (320) Ox2 Location -6/Lower Caves Parts ------- > --- POWER (2) -------- (None) > --- PROPULSION (4) --- Improved Medium Treads > --- UTILITY (6) ------ Huge Storage Unit Experimental Terrain Scan Processor > --- WEAPON (3) ------- Beamcaster Beamcaster > --- INVENTORY (25) --- High-capacity Matter Pod (173) Improved Sensor Array Advanced Sensor Array Improved Terrain Scan Processor Advanced Drone Bay (2/2) Phase Cannon Peak State ------------ > --- POWER ------------ Antimatter Reactor Antimatter Reactor > --- PROPULSION ------- Heavy Treads Heavy Treads > --- UTILITY ---------- Large Storage Unit Improved Sensor Array Damper Plating > --- WEAPON ----------- Bore Cannon Bore Cannon Mace > --- INVENTORY -------- Heavy Treads Improved Heat Sink Huge Storage Unit High-capacity Matter Pod Advanced Sensor Array Experimental Terrain Scan Processor Hardened Light Armor Plating Advanced Drone Bay [Rating: 82] Favorites ----------- Power Light Ion Engine Engine Light Ion Engine Power Core Micro Nuclear Core Reactor Antimatter Reactor Propulsion Light Treads Treads Light Treads Leg Improved VSS Leg Wheel Compact Wheel Utility Improved Heat Sink Device Improved Heat Sink Storage Large Storage Unit Processor Experimental Terrain Scan Processor Protection Hardened Medium Armor Plating Weapon Improved Light Cannon Energy Gun Small Laser Energy Cannon Beam Cannon Ballistic Gun Improved Heavy Machine Gun Ballistic Cannon Improved Light Cannon Launcher Mini Grenade Launcher Impact Weapon Mace Slashing Weapon Mining Claw Build | -11 -10 -10 -9 -6 -6 -6 -6 ------- Run | Yrd Mat Sub Scr Fac Was Fac Low Slots Evolved 8 | . . . . 8 . . . Power 1 | . . . . 1 . . . Propulsion 2 | . . . . 2 . . . Utility 4 | . . . . 4 . . . Weapon 1 | . . . . 1 . . . Parts Attached 77 | 8 11 5 7 8 11 24 3 Power 14 | 1 2 2 1 . 3 5 . Engine 8 | 1 2 2 1 . . 2 . Core 2 | . . . . . . 2 . Reactor 4 | . . . . . 3 1 . Propulsion 15 | 2 1 . . 2 2 8 . Treads 13 | 2 1 . . 2 2 6 . Leg 1 | . . . . . . 1 . Wheel 1 | . . . . . . 1 . Hover . | . . . . . . . . Flight . | . . . . . . . . Utility 24 | 2 3 . 4 2 4 8 1 Device 11 | 1 2 . 1 1 1 5 . Storage 6 | 1 1 . 3 . . 1 . Processor 1 | . . . . . . 1 . Hackware . | . . . . . . . . Protection 6 | . . . . 1 3 1 1 Artifact . | . . . . . . . . Weapon 24 | 3 5 3 2 4 2 3 2 Energy Gun 6 | 2 1 . . 1 . . 2 Energy Cannon 4 | . 3 . . . . 1 . Ballistic Gun 4 | 1 . 1 . . . 2 . Ballistic Cannon 5 | . . 1 2 . 2 . . Launcher 3 | . . 1 . 2 . . . Special Weapon . | . . . . . . . . Impact Weapon 1 | . . . . 1 . . . Slashing Weapon 1 | . 1 . . . . . . Piercing Weapon . | . . . . . . . . Special Melee Weapon . | . . . . . . . . Unidentified Prototypes 2 | . . . . 1 . 1 . Corrupted Parts 1 | . . . . 1 . . . System Corruption 3 | . . . . 3 . . . Parts Lost 37 | . 4 1 . 10 . 19 3 Power 9 | . 1 1 . 1 . 4 2 Propulsion 9 | . 1 . . 3 . 4 1 Utility 9 | . 1 . . 2 . 6 . Weapon 10 | . 1 . . 4 . 5 . Highest Loss Streak 11 | . 2 1 . 4 . 8 11 To Critical Strikes . | . . . . . . . . Average Backups 8 | . 5 9 8 6 6 11 7 Power . | . . . . . . . . Propulsion . | . . . . . . 1 . Utility 5 | . 3 5 4 5 5 6 5 Weapon 2 | . 1 2 3 1 . 3 1 Tool/Special . | . . . . . . . . Unused Backups 14 | . . 1 8 1 . . 4 Power 2 | . . . 2 . . . . Propulsion . | . . . . . . . . Utility 8 | . . 1 3 . . . 4 Weapon 4 | . . . 3 1 . . . Tool/Special . | . . . . . . . . Average Slot Usage (%) 91 | . 99 99 99 58 53 86 46 Engine 9 | . 13 13 13 2 . 1 6 Reactor 2 | . . . . . 9 8 . Treads 23 | . 27 28 28 17 10 17 2 Device 13 | . 13 14 13 10 6 16 . Storage 11 | . 14 14 13 6 6 6 6 Processor 1 | . . . . . . 5 6 Protection 2 | . . . . 3 4 8 8 Energy Gun 2 | . 14 . . 1 4 . 8 Energy Cannon 3 | . 12 9 . . . . . Ballistic Gun 2 | . . 9 1 . . 4 . Ballistic Cannon 13 | . . 8 26 6 2 8 . Impact Weapon 1 | . . . . 4 6 5 . Peak Build Rating 82 | 7 10 13 16 25 82 79 35 Average Rating 26 | 5 8 11 13 19 49 67 31 On Entrance 18 | . 7 10 12 16 12 66 28 Naked Turns . | . . . . . . . . Heaviest Build 150 | 11 22 22 39 51 118 150 . Greatest Support 140 | 40 40 40 40 88 140 140 . Greatest Overweight (x) 7 | . . . . 1 1 7 . Average Overweight (x) . | . . . . . . 1 . Largest Inventory Capacity 35 | 8 10 10 35 15 15 25 25 Average Capacity 15 | 7 8 10 14 15 15 25 25 Most Carried 17 | 1 8 10 13 11 13 17 10 Average Carried 9 | . 5 9 9 7 7 13 7 Final Capacity 25 | 8 10 10 15 15 15 25 25 Final Carried 13 | 1 8 10 12 5 13 11 7 Class Distribution -------------------- 53% | Mutant 30% | Scavenger-Mutant 11% | Scavenger-Assassin Dominant Class ---------------- Mutant | -10/Materials Scavenger-Mutant | -10/Subcaves Mutant | -9/Scraptown Mutant | -6/Factory Scavenger-Mutant | -6/Waste Scavenger-Assassin | -6/Factory Scavenger-Assassin | -6/Lower Caves Resources | -11 -10 -10 -9 -6 -6 -6 -6 ----------- Run | Yrd Mat Sub Scr Fac Was Fac Low Matter Collected 3007 | 231 375 162 184 427 313 1315 . Remotely 258 | . . . . . . 258 . Salvage Created 2565 | 27 626 173 . 546 . 1137 56 Parts 111 | 6 34 8 . 7 . 55 1 Haulers Intercepted 4 | . 2 . . 1 . 1 . Recyclers Shooed 7 | . 3 . . 1 . 3 . Parts Field Recycled . | . . . . . . . . Retrieved Matter . | . . . . . . . . Parts Self-Destructed 2 | . . 2 . . . . . Prevented . | . . . . . . . . Kills | -11 -10 -10 -9 -6 -6 -6 -6 ------- Run | Yrd Mat Sub Scr Fac Was Fac Low Combat Hostiles Destroyed 49 | . 15 4 . 12 . 17 1 Melee 1 | . . . . . . 1 . Guns 19 | . 8 1 . . . 9 1 Cannons 15 | . 7 3 . 1 . 4 . AOE 14 | . . . . 11 . 3 . Classes Destroyed 14 | 1 5 2 . 1 . 4 1 Worker 2 | . . . . . . 2 . Builder 3 | . 1 . . . . 2 . Tunneler 2 | 2 . . . . . . . Hauler 4 | . 2 . . 1 . 1 . Recycler 6 | . 2 . . 1 . 3 . Watcher 1 | . . . . . . 1 . Swarmer 13 | . 9 . . . . 4 . Grunt 21 | . 6 . . 10 . 5 . Duelist 1 | . . . . . . . 1 Sentry 3 | . . . . . . 3 . Hunter 4 | . . . . 2 . 2 . Programmer 3 | . . . . . . 3 . Artisan 1 | . . 1 . . . . . Subdweller 4 | . . 4 . . . . . Best Kill Streak 9 | 2 4 1 . 5 . 9 1 Combat Bots Only 4 | . 4 1 . 4 . 3 1 Max Kills in Single Turn 3 | 1 1 1 . 3 . 3 1 Gunslinging . | . . . . . . . . Exploded 3 | . . . . 3 . 2 . Melee 1 | . . . . . . 1 . Uniques/NPCs Destroyed . | . . . . . . . . Combat | -11 -10 -10 -9 -6 -6 -6 -6 -------- Run | Yrd Mat Sub Scr Fac Was Fac Low Hostile Shots Fired 560 | . 97 19 . 62 . 356 26 Missed 175 | . 30 4 . 15 . 123 3 Hits 385 | . 67 15 . 47 . 233 23 Melee 5 | . . . . . . . 5 Projectile 380 | . 67 15 . 47 . 233 18 AOE 2 | . . 2 . . . . . Critical Strikes 8 | . . . . 2 . 3 3 Damage Taken 6300 | . 603 425 . 1188 . 3545 539 Core 872 | . 74 82 . 216 . 343 157 Absorbed by Shields . | . . . . . . . . Regen/Repaired (Parts) 281 | . 105 . . . . 176 . Core Remaining (%) 68 | 100 . . 37 . . . . Volleys Fired 202 | 11 60 27 . 18 . 81 5 Largest 3 | 2 2 2 . 3 . 3 2 Hottest 150 | 80 125 120 . 103 . 115 150 Shots Fired 379 | 22 108 46 . 22 . 171 10 Gun 202 | 22 61 12 . . . 97 10 Cannon 160 | . 47 32 . 7 . 74 . Launcher 17 | . . 2 . 15 . . . Special . | . . . . . . . . Kinetic 212 | . . 32 . 16 . 164 . Thermal 159 | 22 108 12 . . . 7 10 Explosive 8 | . . 2 . 6 . . . Electromagnetic . | . . . . . . . . Robot Hit Streak 19 | 4 11 19 . 6 . 8 9 Robot Miss Streak 12 | 2 7 1 . 4 . 12 1 Penetration Max . | . . . . . . . . Secondary Targets 3 | . 1 . . . . 2 . Max Gunslinging Chain 1 | . 1 . . . . 1 . Shots Hit Robots 221 | 14 65 30 . 18 . 85 9 Core Hits 111 | 3 25 6 . 33 . 40 4 Critical Kills 6 | . . 1 . . . 5 . Critical Parts Destroyed 13 | . . . . 3 . 10 . Critical Strikes 22 | . 1 1 . 3 . 15 2 Burn 3 | . 1 . . . . . 2 Destroy 14 | . . 1 . . . 13 . Smash 5 | . . . . 3 . 2 . Melee Attacks 62 | . 9 . . 13 . 40 . Impact 53 | . . . . 13 . 40 . Slashing 9 | . 9 . . . . . . Piercing . | . . . . . . . . Sneak Attacks 11 | . . . . 4 . 7 . Combat Hostiles . | . . . . . . . . Follow-up Attacks . | . . . . . . . . Damage Inflicted 6747 | 167 1017 490 . 1940 . 2944 189 Guns 2344 | 167 580 81 . . . 1327 189 Cannons 1355 | . 411 328 . 67 . 549 . Explosions 2271 | . . 81 . 1581 . 609 . Melee 760 | . 25 . . 292 . 443 . Ramming 17 | . 1 . . . . 16 . Kinetic 3015 | . . 215 . 1066 . 1734 . Thermal 1954 | 167 991 194 . . . 413 189 Explosive 1001 | . . 81 . 582 . 338 . Electromagnetic . | . . . . . . . . Impact 735 | . . . . 292 . 443 . Slashing 25 | . 25 . . . . . . Piercing . | . . . . . . . . Highest Corruption 8 | . . . . 4 4 8 8 Average Corruption 5 | . . . . 3 4 5 8 Corruption Purged . | . . . . . . . . Corruption Blocked . | . . . . . . . . Effects 73 | . . . . 4 15 53 1 Message Errors 14 | . . . . 1 . 12 1 Matter Fused 15 | . . . . 1 6 8 . Heat Flow Errors 8 | . . . . . 2 6 . Energy Discharges 10 | . . . . . 2 8 . Parts Rejected 2 | . . . . . . 2 . Parts Fused 2 | . . . . . 1 1 . Data Loss (minor) 13 | . . . . 1 4 8 . Data Loss (major) 3 | . . . . 1 . 2 . Misfires 2 | . . . . . . 2 . Alerts 3 | . . . . . . 3 . Weapon Failures 1 | . . . . . . 1 . Overload Shots . | . . . . . . . . Overflow Damage 411 | . . . . 179 . 232 . Projectiles 28 | . . . . . . 28 . Explosions 27 | . . . . 27 . . . Melee 356 | . . . . 152 . 204 . Knockbacks 15 | . . 2 . 2 . 11 . Impact 5 | . . . . 2 . 3 . Kinetic 10 | . . 2 . . . 8 . Secondary . | . . . . . . . . Self-Inflicted Damage 243 | . . 11 . 123 . 109 . Shots 5 | . . 1 . 3 . 1 . Rammed 3 | . 1 . . . . 2 . Targets Rammed 3 | . 1 . . . . 2 . Kicked . | . . . . . . . . Crushed . | . . . . . . . . Highest Temperature 543 | 198 168 . . 26 289 543 375 Average Temperature 97 | 100 46 . . 26 40 144 191 Received Heat Transfer 1765 | . 132 66 . 325 . 1080 162 Effects 15 | . . . . . . 15 . Shutdowns 5 | . . . . . . 5 . Energy Bleed 1 | . . . . . . 1 . Interference 2 | . . . . . . 2 . Matter Decay 1 | . . . . . . 1 . Short Circuit 2 | . . . . . . 2 . Damage (minor) 1 | . . . . . . 1 . Damage (major) 3 | . . . . . . 3 . Siege Activations . | . . . . . . . . Martial Activations . | . . . . . . . . Shielding Activations . | . . . . . . . . Robots Disrupted . | . . . . . . . . Combat Hostiles . | . . . . . . . . Robots Corrupted 3 | . . . . 1 . 2 . Combat Hostiles . | . . . . . . . . Parts Fried 6 | . . . . 3 . 3 . Impact Corruptions 13 | . . . . 4 . 9 . Robots Melted . | . . . . . . . . Combat Hostiles . | . . . . . . . . Parts Melted 5 | . 2 1 . . . . 2 Heat Transferred 3765 | 375 2204 407 . . . 298 481 Parts Sabotaged . | . . . . . . . . Parts Stolen . | . . . . . . . . Parts Stripped . | . . . . . . . . Power Chain Reactions . | . . . . . . . . Alert | -11 -10 -10 -9 -6 -6 -6 -6 ------- Run | Yrd Mat Sub Scr Fac Was Fac Low Maximum Alert Level 1 | . 1 . . . . 1 . Low Security (%) 85 | 100 99 . . 100 100 66 . Level 1 14 | . . . . . . 33 . Level 2 . | . . . . . . . . Level 3 . | . . . . . . . . Level 4 . | . . . . . . . . Level 5 . | . . . . . . . . High Security . | . . . . . . . . Max Security . | . . . . . . . . Peak Influence 308 | 5 206 . . 181 24 308 . Initial 24 | . . . . . 24 . . Average 82 | 1 82 . . 113 1 105 . Influence Increases 1578 | 10 458 . . 352 . 728 30 Destroy 0b10 Robot/C 900 | . 300 . . 240 . 340 20 Destroy 0b10 Robot/NC 90 | 10 25 . . 10 . 45 . Destroy Leader 210 | . 54 . . 32 . 114 10 Trap Triggered on 0b10 10 | . . . . 10 . . . Successful Hack 23 | . 16 . . . . 7 . Disable Machine 90 | . 15 . . . . 75 . Destroy Structure 165 | . 3 . . 60 . 102 . Lose Combat Pursuer 90 | . 45 . . . . 45 . Influence Decreases 1447 | 10 402 56 . 281 71 503 124 Entered New Map 159 | . . 28 . . 47 . 84 Time Decay 949 | 10 382 28 . 181 24 314 10 Lost Part 339 | . 20 . . 100 . 189 30 Squads Dispatched 11 | . 1 . . 3 . 7 . Investigation 3 | . . . . . . 3 . Extermination 4 | . . . . 1 . 3 . Reinforcement 4 | . 1 . . 2 . 1 . Assault . | . . . . . . . . Garrison . | . . . . . . . . Intercept . | . . . . . . . . Searches Triggered . | . . . . . . . . Construction Impeded 1 | . . . . 1 . . . Haulers Reinforced 2 | . . . . 1 . 1 . Active Scanning Responses . | . . . . . . . . Cargo Convoy Interrupts . | . . . . . . . . Stealth | -11 -10 -10 -9 -6 -6 -6 -6 --------- Run | Yrd Mat Sub Scr Fac Was Fac Low Distress Signals 10 | . 6 . . . . 4 . Communications Jammed . | . . . . . . . . Distress Signals . | . . . . . . . . Times Spotted 86 | . 33 5 . 14 1 29 4 Peak Tracking Total 6 | . 6 1 . 4 1 5 4 Tactical Retreats 6 | . 3 . . . . 3 . Traps | -11 -10 -10 -9 -6 -6 -6 -6 ------- Run | Yrd Mat Sub Scr Fac Was Fac Low Traps Triggered 6 | . 2 . . 3 . 1 . Indirectly . | . . . . . . . . Trap Hack Attempts . | . . . . . . . . Triggered . | . . . . . . . . Disarmed . | . . . . . . . . Reprogrammed . | . . . . . . . . Reused 1 | . . . . 1 . . . Traps Extracted . | . . . . . . . . Installed 3 | . . . 1 2 . . . Triggered 1 | . . . . 1 . . . Most Traps Carried 2 | . . . 2 2 . . . Machines | -11 -10 -10 -9 -6 -6 -6 -6 ---------- Run | Yrd Mat Sub Scr Fac Was Fac Low Machines Disabled 6 | . 1 . . . . 5 . Max in Single Turn 2 | . 1 . . . . 2 . Machines Repaired . | . . . . . . . . Machines Dismantled . | . . . . . . . . Machines Sabotaged . | . . . . . . . . Overloaded Fab Kills . | . . . . . . . . Hacking | -11 -10 -10 -9 -6 -6 -6 -6 --------- Run | Yrd Mat Sub Scr Fac Was Fac Low Machines Accessed 25 | . 7 2 8 1 . 7 . Terminals 10 | . 6 . . 1 . 3 . Fabricators . | . . . . . . . . Repair Stations 2 | . 1 . . . . 1 . Recycling Units 3 | . . . . . . 3 . Scanalyzers . | . . . . . . . . Garrison Access . | . . . . . . . . Total Hacks 81 | . 24 2 38 1 . 16 . Successful 58 | . 11 2 38 . . 7 . Failed 23 | . 13 . . 1 . 9 . Catastrophic 3 | . . . . 1 . 2 . Database Lockouts . | . . . . . . . . Manual 21 | . 10 . . 1 . 10 . Terminals 32 | . 22 . . 1 . 9 . Fabricators . | . . . . . . . . Repair Stations 5 | . 2 . . . . 3 . Recycling Units 4 | . . . . . . 4 . Scanalyzers . | . . . . . . . . Garrison Access . | . . . . . . . . Terminal Hacks 47 | . 5 2 38 . . 2 . Record 38 | . . 1 37 . . . . Robot Analysis 2 | . 2 . . . . . . Prototype ID Bank 1 | . 1 . . . . . . Open Door 1 | . . 1 . . . . . Branch Access Points 2 | . 1 . . . . 1 . Recycling Unit Index 1 | . . . . . . 1 . Maintenance Status 1 | . 1 . . . . . . Proto ID Catalog 1 | . . . 1 . . . . Fabricator Hacks . | . . . . . . . . Repair Station Hacks 4 | . 2 . . . . 2 . Scan Component 2 | . 1 . . . . 1 . Repair 2 | . 1 . . . . 1 . Recycling Unit Hacks . | . . . . . . . . Scanalyzer . | . . . . . . . . Garrison Access Hacks . | . . . . . . . . Unauthorized Hacks 7 | . 4 . . . . 3 . Terminals 5 | . 4 . . . . 1 . Botnet 5 | . 4 . . . . 1 . Fabricators . | . . . . . . . . Repair Stations . | . . . . . . . . Recycling Units 2 | . . . . . . 2 . Fedlink 2 | . . . . . . 2 . Scanalyzers . | . . . . . . . . Garrison Access . | . . . . . . . . Data Cores Recovered . | . . . . . . . . Used . | . . . . . . . . Hacking Detections 12 | . 7 . . 1 . 4 . Full Trace Events . | . . . . . . . . Feedback Events . | . . . . . . . . Feedback Blocked . | . . . . . . . . Robot Schematics Acquired . | . . . . . . . . Robots Built . | . . . . . . . . Authchips . | . . . . . . . . Time . | . . . . . . . . Total Robot Build Rating . | . . . . . . . . Part Schematics Acquired . | . . . . . . . . Parts Built . | . . . . . . . . Authchips . | . . . . . . . . Time . | . . . . . . . . Total Part Build Rating . | . . . . . . . . Parts Repaired 2 | . 1 . . . . 1 . Time 82 | . 26 . . . . 56 . Parts Recycled . | . . . . . . . . Recycled Matter . | . . . . . . . . Retrieved Matter . | . . . . . . . . Retrieved Components . | . . . . . . . . Parts Scanalyzed . | . . . . . . . . Part Schematics Acquired . | . . . . . . . . Parts Damaged . | . . . . . . . . Bothacking | -11 -10 -10 -9 -6 -6 -6 -6 ------------ Run | Yrd Mat Sub Scr Fac Was Fac Low Used RIF Installer . | . . . . . . . . Robots Hacked . | . . . . . . . . Non-combat . | . . . . . . . . Combat . | . . . . . . . . Robot Hacks Applied . | . . . . . . . . Relay Couplers Released . | . . . . . . . . Fabnet Peak Effective % . | . . . . . . . . Robots Rewired . | . . . . . . . . Allies Hacked . | . . . . . . . . Hacks Repelled . | . . . . . . . . Allies | -11 -10 -10 -9 -6 -6 -6 -6 -------- Run | Yrd Mat Sub Scr Fac Was Fac Low Total Allies . | . . . . . . . . Largest Group . | . . . . . . . . Highest-Rated Group . | . . . . . . . . Highest-Rated Ally . | . . . . . . . . Total Orders . | . . . . . . . . Ally Attacks . | . . . . . . . . Total Damage . | . . . . . . . . Kills . | . . . . . . . . Allies Corrupted . | . . . . . . . . Allies Melted . | . . . . . . . . Intel | -11 -10 -10 -9 -6 -6 -6 -6 ------- Run | Yrd Mat Sub Scr Fac Was Fac Low Active Infowar (turns) 2260 | 57 501 . . 108 . 1594 . Sensors 341 | . . . . 108 . 233 . Terrain 1594 | . . . . . . 1594 . Seismic 558 | 57 501 . . . . . . Robot Analysis Total 2 | . 2 . . . . . . Derelict Logs Recovered 4 | . . 1 3 . . . . Drone Launches . | . . . . . . . . Drone Recoveries . | . . . . . . . . Exploration | -11 -10 -10 -9 -6 -6 -6 -6 ------------- Run | Yrd Mat Sub Scr Fac Was Fac Low Turns Passed 8227 | 139 1301 892 3145 381 533 1815 21 Spaces Moved 4021 | 62 636 496 1852 148 265 562 . Core 5 | 5 . . . . . . . Treads 3981 | 57 636 496 1852 148 265 527 . Legs . | . . . . . . . . Wheels 35 | . . . . . . 35 . Hover . | . . . . . . . . Flight . | . . . . . . . . Fastest Speed 50 | 50 160 160 160 160 160 160 . Average Speed 172 | 151 160 160 160 180 190 234 . Slowest Speed 320 | 160 160 160 160 240 240 320 . Overloaded Moves . | . . . . . . . . Propulsion Burnouts . | . . . . . . . . Robots Hopped . | . . . . . . . . Potential Cave-ins . | . . . . . . . . Cave-ins Triggered . | . . . . . . . . Exploration Rate (%) 41 | 5 96 22 95 4 96 12 2 Regions Visited 7 Branch Regions 3 Pre-discovered Areas 1 | . . . . . . 1 . Known Exits Taken 1 | . . . . . . 1 . Unknown Exits Taken 4 | 1 1 1 1 . . . . Scrap Searched 8 | . . 3 5 . . . . Spaces Dug 35 | . 2 . . 2 . 31 . Terrain Destroyed 248 | . 2 11 . 86 . 149 . Melee 29 | . 2 . . 2 . 25 . Projectile 49 | . . . . . . 49 . AOE 170 | . . 11 . 84 . 75 . Terrain Rammed . | . . . . . . . . Walls Destroyed . | . . . . . . . . Machines Disabled . | . . . . . . . . Actions | -11 -10 -10 -9 -6 -6 -6 -6 --------- Run | Yrd Mat Sub Scr Fac Was Fac Low Total 4822 | 82 790 552 2037 219 291 841 10 Wait 303 | . 53 6 133 16 . 95 . Move 4015 | 61 635 495 1851 148 264 561 . Hop . | . . . . . . . . Pick Up 54 | 1 10 8 18 4 6 7 . Fast Attach 70 | 8 10 4 12 1 12 22 1 Attach 24 | . 3 . . 7 . 10 4 Detach 6 | . 1 1 . . . 4 . Swap 18 | . 2 2 2 6 . 6 . Drop 59 | 1 6 9 20 4 6 13 . Fire 202 | 11 60 27 . 18 . 81 5 Melee 62 | . 9 . . 13 . 40 . Ram . | . . . . . . . . Kick . | . . . . . . . . Crush 3 | . 1 . . . . 2 . Escape Stasis . | . . . . . . . . Rewire 3 | . . . . . 3 . . Trap 3 | . . . 1 2 . . . Miscellaneous . | . . . . . . . . Route ------- -11/Scrapyard -10/Materials (discovered 5 exits: [*Mat x2] / *Min x2 / *Sub) -10/Subcaves -9/Scraptown (discovered 2 exits: *Fac x2) -6/Factory -6/Waste -6/Factory (discovered 3 exits: *Fac / *Low x2) -6/Lower Caves History --------- Turn | Location | Event 9 | -11/Scrapyard | Discovered new exit (range 15) 140 | -11/Scrapyard | Entered Materials 268 | -10/Materials | Identified exit to Mines 312 | -10/Materials | Build established: Mutant 483 | -10/Materials | Discovered new exit (range 14) 617 | -10/Materials | Discovered new exit (range 3) 1143 | -10/Materials | Build established: Scavenger-Mutant 1367 | -10/Materials | Repaired Lgt. Treads 1428 | -10/Materials | Discovered new exit (range 9) 1441 | -10/Materials | Entered Subcaves 1441 | -10/Subcaves | Learned location of 1 exit from Materials 1442 | -10/Subcaves | Approached by a straggling Scientist 1774 | -10/Subcaves | Disturbed a concealed Subdweller 2170 | -10/Subcaves | Core integrity fell below 50% 2333 | -10/Subcaves | Entered Scraptown 2548 | -9/Scraptown | Heard Great Nut preacher, LISTEN AND RECITE! 2847 | -9/Scraptown | Scanned Subdweller tech in exchange for log data 2850 | -9/Scraptown | Learned location of 1 exit from Factory 2852 | -9/Scraptown | Learned Research emergency access door positions 2854 | -9/Scraptown | Learned location of 2 exits from Proximity Caves 2867 | -9/Scraptown | Build established: Mutant 2927 | -9/Scraptown | Discovered new exit (range 13) 3066 | -9/Scraptown | Visited Red Mages 3102 | -9/Scraptown | Found Relay Coupler [Proto] 3150 | -9/Scraptown | Visited Shadow of the Wyrm 3485 | -9/Scraptown | Visited TADAMA 3519 | -9/Scraptown | Visited The Evicted 3603 | -9/Scraptown | Visited Symbiants 3661 | -9/Scraptown | Visited Cyclists 3715 | -9/Scraptown | Visited UFD Registry 3733 | -9/Scraptown | Registered with UFD as "Pulsetorch" 3765 | -9/Scraptown | Entered Cyclist Reading Room 3847 | -9/Scraptown | Visited Junk Repository 3896 | -9/Scraptown | Visited Chapter 10 3941 | -9/Scraptown | Visited Abandonware Association 3962 | -9/Scraptown | Learned abandonware demo "KABOOM.EXE" 3962 | -9/Scraptown | Learned abandonware demo "POISON.EXE" 4032 | -9/Scraptown | Visited Curators Association 4107 | -9/Scraptown | Visited Scrap Suit Storage 4159 | -9/Scraptown | Visited Research Penetration Think Tank 4195 | -9/Scraptown | Visited Infowarlord's Domain 4210 | -9/Scraptown | Found Exp. Terrain Scan Processor 4240 | -9/Scraptown | Visited Scrapoid Research Area 4288 | -9/Scraptown | Visited Junk Repository 4364 | -9/Scraptown | Visited Science Guys 4594 | -9/Scraptown | Warned about trapping Scraptown 5327 | -9/Scraptown | Met Optimus 5327 | -9/Scraptown | Accepted into 0bPrime 5473 | -9/Scraptown | Discovered new exit (range 3) 5478 | -9/Scraptown | Entered Factory 5478 | -6/Factory | Evolved 8 slots: Power x1, Propulsion x2, Utility x4, Weapon x1 5479 | -6/Factory | Identified exit to Factory 5664 | -6/Factory | Lost 3 parts (1p2w) 5737 | -6/Factory | Lost 3 parts (1n1u1w) 5809 | -6/Factory | Lost 4 parts (2n1u1w) 5859 | -6/Factory | Sucked down chute 5859 | -6/Factory | Entered Waste 5859 | -6/Waste | The area was eerily silent 6073 | -6/Waste | Found Damper Plating 6369 | -6/Waste | Discovered new exit (range 13) 6389 | -6/Waste | A Compactor rumbled back to life 6389 | -6/Waste | Spotted C-40 Crusher 6392 | -6/Waste | Entered Factory 6415 | -6/Factory | Build established: Scavenger-Mutant 6501 | -6/Factory | Repaired Hvy. Treads 6788 | -6/Factory | Build established: Scavenger-Assassin 7112 | -6/Factory | Identified exit to Lower Caves 7496 | -6/Factory | Build established: Scavenger-Mutant 7616 | -6/Factory | Lost 3 parts (1p1u1w) 7753 | -6/Factory | Loaded intel: 8 recycling unit locations 8063 | -6/Factory | Core integrity fell below 50% 8099 | -6/Factory | Lost 5 parts (1p1n3u) 8158 | -6/Factory | Learned location of Protoforge (-3) 8204 | -6/Factory | Discovered exit to Factory (range 10) 8207 | -6/Factory | Entered Lower Caves 8219 | -6/Lower Caves | Core integrity fell below 20% 8228 | -6/Lower Caves | Self-destructed Last Messages --------------- 08203_ Mace destroyed. 08204_ Imp. Heavy Machine Gun destroyed. 08204_ EXIT=FOUND: FACTORY 08206_ Imp. Heavy Machine Gun destroyed. LOCATION=LOWER CAVES GOAL=ESCAPE 08209_ Lgt. Fission Core destroyed. 08212_ Hrd. Light Armor Plating severed. 08212_ Com. Wheel destroyed. 08213_ VTQG>LX0EFH2QCXK:T